bitfinex/quotes_SOLUSD_20220210
["timestamp","ask_amount","ask_price","bid_price","bid_amount"]
[1644475367733,1.27214286,111.93,111.86,50.98857439]
[1644475370255,1.27214286,111.93,111.86,50.73857439]
[1644475370456,1.27214286,111.93,111.86,48.962]
[1644475370657,1.27214286,111.92,111.86,48.962]
[1644475372959,1.29614286,111.92,111.86,49.212]
[1644475379267,22.93784648,111.91,111.86,49.212]
[1644475379467,22.93784648,111.91,111.86,48.962]
[1644475379668,22.93784648,111.91,111.86,25.8714]
[1644475379669,1.27214286,111.9,111.86,25.8714]
[1644475379869,1.27214286,111.9,111.81,26.06717439]
[1644475380070,1.27214286,111.89,111.82,23.2626]
[1644475380268,1.29614286,111.89,111.82,23.2626]
[1644475380468,14.71034286,111.89,111.82,23.2626]
[1644475380870,14.71034286,111.89,111.83,40.79723952]
[1644475381669,1.29614286,111.89,111.83,54.46213952]
[1644475382069,1.29614286,111.89,111.83,66.92213952]
[1644475382469,1.29614286,111.89,111.84,22.6646]
[1644475382669,1.27214286,111.89,111.84,36.0777]
[1644475385274,1.27214286,111.9,111.84,36.0777]
[1644475385675,1.27214286,111.9,111.84,36.3277]
[1644475387274,1.27214286,111.9,111.84,38.10427439]
[1644475387476,1.27214286,111.9,111.84,36.3277]
[1644475388276,1.27214286,111.9,111.84,48.7877]
[1644475389586,1.27214286,111.9,111.84,48.5377]
[1644475390180,14.68474286,111.9,111.84,48.5377]
[1644475390381,1.27214286,111.89,111.84,48.5377]
[1644475390979,14.68474286,111.9,111.84,48.5377]
[1644475394482,1.27214286,111.9,111.84,48.5377]
[1644475395683,14.68484286,111.9,111.84,48.5377]
[1644475396884,1.27214286,111.9,111.84,48.5377]
[1644475408292,1.27214286,111.9,111.84,50.56427439]
[1644475408892,1.29614286,111.91,111.84,50.56427439]
[1644475409493,1.27214286,111.91,111.84,50.56427439]
[1644475409699,45.874,111.96,111.87,13.405]
[1644475409700,1.29614286,111.93,111.87,13.405]
[1644475409896,0.024,111.91,111.88,36.1514]
[1644475410097,1.27214286,111.93,111.89,3.03219997]
[1644475410295,1.27214286,111.93,111.9,39.5797842]
[1644475410696,1.27214286,111.94,111.9,39.5797842]
[1644475411720,1.27214286,111.94,111.91,13.4043]
[1644475411919,1.27214286,111.94,111.92,3.03219997]
[1644475412822,1.27214286,111.95,111.91,22.7447]
[1644475413823,1.27214286,111.95,111.92,13.4043]
[1644475414121,1.27214286,111.95,111.93,3.03219997]
[1644475414321,3.03219997,111.94,111.92,13.4043]
[1644475415323,1.27214286,111.95,111.92,13.4043]
[1644475416524,1.27214286,111.95,111.93,3.03219997]
[1644475418724,1.27214286,111.96,111.93,3.03219997]
[1644475419425,14.67834286,111.96,111.93,3.03219997]
[1644475419827,4.30434283,111.95,111.93,3.03219997]
[1644475420627,3.03219997,111.95,111.93,3.03219997]
[1644475422831,1.27214286,111.96,111.93,3.03219997]
[1644475423334,3.03219997,111.95,111.93,3.03219997]
[1644475423531,3.03219997,111.95,111.94,37.89477448]
[1644475423732,1.29614286,111.98,111.94,37.89477448]
[1644475423931,1.27214286,111.98,111.94,37.89477448]
[1644475424735,1.27214286,111.98,111.94,51.29707448]
[1644475425232,46.80400143,111.99,111.94,13.4023]
[1644475425432,46.80400143,111.99,111.91,12.46]
[1644475425633,1.29614286,111.98,111.9,24.1784]
[1644475425833,1.29614286,111.97,111.9,24.1784]
[1644475426036,1.27214286,111.97,111.9,24.1784]
[1644475426235,1.27214286,111.97,111.91,51.69670668]
[1644475426435,0.024,111.98,111.91,51.69670668]
[1644475426436,1.29614286,111.98,111.91,51.69670668]
[1644475426637,0.024,111.97,111.91,51.69670668]
[1644475427037,0.024,111.97,111.92,22.9798]
[1644475427239,14.70054286,111.98,111.93,13.4035]
[1644475427439,0.024,111.97,111.93,13.4035]
[1644475427638,1.27214286,111.98,111.93,13.4035]
[1644475429438,14.67634286,111.98,111.91,38.29080668]
[1644475429637,1.27214286,111.96,111.91,38.29080668]
[1644475430439,1.27214286,111.96,111.91,51.69660668]
[1644475431742,14.67744286,111.97,111.91,51.69660668]
[1644475432143,14.67744286,111.97,111.92,24.5538]
[1644475432343,14.67744286,111.97,111.92,37.9584]
[1644475434849,1.27214286,111.96,111.92,37.9584]
[1644475435144,45.15994642,111.96,111.89,12.46]
[1644475435344,1.27214286,111.95,111.88,22.6358]
[1644475435545,1.29614286,111.94,111.88,22.6358]
[1644475435743,1.27214286,111.93,111.86,12.46]
[1644475435945,1.29614286,111.93,111.86,12.46]
[1644475436144,1.29614286,111.93,111.87,47.66431801]
[1644475436344,0.024,111.92,111.87,47.66431801]
[1644475436548,14.68234286,111.93,111.87,61.07501801]
[1644475436845,13.4102,111.93,111.87,61.07501801]
[1644475437046,14.68234286,111.93,111.87,61.07501801]
[1644475438249,1.29614286,111.94,111.87,61.07501801]
[1644475438449,1.29614286,111.94,111.88,24.8189]
[1644475438649,1.29614286,111.94,111.89,13.4069]
[1644475439350,0.024,111.94,111.89,13.4069]
[1644475439550,24.57224286,111.95,111.9,24.8347]
[1644475439748,0.024,111.94,111.9,24.8347]
[1644475439951,24.57224286,111.95,111.9,24.8347]
[1644475440348,24.57224286,111.95,111.91,51.72489346]
[1644475440749,1.27214286,111.95,111.91,51.72489346]
[1644475442651,1.27214286,111.96,111.91,51.72489346]
[1644475442851,1.27214286,111.96,111.92,22.5102]
[1644475443052,1.27214286,111.97,111.93,13.4031]
[1644475443753,1.27214286,111.98,111.93,13.4031]
[1644475444553,1.27214286,111.98,111.95,36.8880387]
[1644475444776,3.03219997,111.97,111.95,13.4002]
[1644475444979,1.27214286,111.97,111.94,24.7096]
[1644475445777,1.27214286,111.97,111.95,35.58538854]
[1644475445977,1.27214286,111.98,111.96,3.03219997]
[1644475446977,3.03219997,111.97,111.96,3.03219997]
[1644475447177,1.27214286,111.98,111.95,35.58538854]
[1644475447379,1.27214286,111.98,111.96,3.03219997]
[1644475450989,1.27214286,111.98,111.95,35.58538854]
[1644475451188,3.03219997,111.97,111.95,35.58538854]
[1644475451886,3.03219997,111.97,111.96,3.03219997]
[1644475452086,1.27214286,111.98,111.96,3.03219997]
[1644475452486,1.27214286,111.98,111.95,35.58538854]
[1644475453487,1.27214286,111.98,111.96,3.03219997]
[1644475453890,1.27214286,111.99,111.96,3.03219997]
[1644475454288,1.27214286,111.99,111.96,27.57339997]
[1644475454488,1.27214286,111.99,111.96,3.00397441]
[1644475454787,0.024,112.01,111.96,3.00397441]
[1644475454788,1.27214286,111.98,111.96,3.00397441]
[1644475455588,1.27214286,111.97,111.88,12.46]
[1644475455791,0.024,111.97,111.89,24.373]
[1644475455991,1.2719516,111.96,111.89,24.373]
[1644475456189,1.2719516,111.96,111.91,13.4052]
[1644475456387,1.2719516,111.95,111.9,43.69050245]
[1644475457388,14.6802516,111.95,111.9,43.69050245]
[1644475458688,1.2719516,111.95,111.9,57.09770245]
[1644475458890,1.2719516,111.96,111.9,57.09770245]
[1644475459289,1.2719516,111.95,111.9,57.09770245]
[1644475459489,1.2719516,111.96,111.9,57.09770245]
[1644475459990,1.2719516,111.95,111.9,57.09770245]
[1644475461093,14.7027516,111.96,111.9,57.09770245]
[1644475461295,14.6787516,111.96,111.9,57.09770245]
[1644475461693,1.2959516,111.96,111.9,57.09770245]
[1644475461895,1.2719516,111.96,111.9,57.09770245]
[1644475463195,1.2719516,111.95,111.9,57.09770245]
[1644475463797,14.6781516,111.96,111.9,57.09770245]
[1644475463996,1.2719516,111.95,111.9,57.09770245]
[1644475464897,1.2719516,111.96,111.9,57.09770245]
[1644475465297,1.2959516,111.96,111.9,57.09770245]
[1644475465498,1.25595501,111.96,111.9,57.09770245]
[1644475465898,1.23195501,111.96,111.9,57.09770245]
[1644475466101,0.024,111.97,111.9,57.09770245]
[1644475466398,47.23546299,111.99,111.9,57.09770245]
[1644475466798,13.4062,111.96,111.9,57.09770245]
[1644475467798,13.4051,111.97,111.9,57.09770245]
[1644475467999,50.05676299,112.0,111.9,69.55770245]
[1644475468200,50.05676299,112.0,111.91,23.0539]
[1644475468399,50.05676299,112.0,111.92,13.4041]
[1644475468700,50.05676299,112.0,111.92,49.3307359]
[1644475469700,13.4039,111.98,111.92,49.3307359]
[1644475475002,50.49511859,111.98,111.92,49.3307359]
[1644475475303,50.49511859,111.98,111.92,35.9266359]
[1644475475504,15.95066299,111.98,111.92,35.9266359]
[1644475476203,13.4039,111.98,111.92,35.9266359]
[1644475478010,21.96555955,111.97,111.92,35.9266359]
[1644475478209,13.4061,111.96,111.92,35.9266359]
[1644475478910,13.4061,111.96,111.9,13.4075]
[1644475479110,11.881688,111.95,111.88,23.6288]
[1644475479311,25.30410729,111.96,111.88,23.6288]
[1644475479512,13.4102,111.93,111.88,23.6288]
[1644475479915,13.4102,111.93,111.89,46.95509686]
[1644475480113,24.7431,111.96,111.89,46.95509686]
[1644475480913,24.7431,111.96,111.89,71.21249686]
[1644475481715,13.4068,111.95,111.89,84.62069686]
[1644475481914,13.4308,111.95,111.89,84.62069686]
[1644475490552,0.024,111.95,111.89,97.08069686]
[1644475490752,0.024,111.96,111.89,99.09674511]
[1644475490951,0.024,111.98,111.92,13.4009]
[1644475491148,0.024,111.97,111.92,25.8609]
[1644475491348,0.024,111.99,111.92,25.8609]
[1644475491549,0.024,112.0,111.93,24.955]
[1644475491747,13.4259,112.0,111.94,45.02627681]
[1644475491948,13.4019,112.0,111.94,45.02627681]
[1644475492148,13.4259,112.0,111.94,45.02627681]
[1644475492852,13.4259,112.0,111.94,58.42817681]
[1644475495656,33.37295891,112.0,111.94,45.02627681]
[1644475495858,5.09069072,111.99,111.93,24.955]
[1644475496054,13.4061,111.98,111.92,23.356]
[1644475496256,13.4061,111.98,111.88,22.9914]
[1644475496458,0.024,111.97,111.88,35.4514]
[1644475496857,0.024,111.97,111.92,43.04478473]
[1644475497056,0.024,111.98,111.92,43.04478473]
[1644475497254,13.4289,111.97,111.92,43.04478473]
[1644475497455,13.4049,111.97,111.92,43.04478473]
[1644475498157,13.4289,111.97,111.92,43.04478473]
[1644475498859,13.4289,111.97,111.92,56.44898473]
[1644475499058,13.4049,111.97,111.92,56.44898473]
[1644475503662,40.17655627,111.97,111.92,56.44898473]
[1644475503862,13.4049,111.97,111.92,56.44898473]
[1644475504885,13.4049,111.97,111.9,23.4179]
[1644475505087,13.4049,111.97,111.87,24.2759]
[1644475505287,0.024,111.96,111.87,24.2759]
[1644475505487,13.4114,111.94,111.87,24.2519]
[1644475505888,48.66871524,111.94,111.88,37.08393654]
[1644475506087,65.262806,111.93,111.88,37.08393654]
[1644475506486,20.554606,111.92,111.88,37.08393654]
[1644475506690,44.7082,111.93,111.88,37.08393654]
[1644475507088,14.037954,111.92,111.88,37.08393654]
[1644475507286,25.920669,111.92,111.88,37.08393654]
[1644475507887,39.333169,111.92,111.88,37.08393654]
[1644475508289,11.882715,111.91,111.86,0.024]
[1644475508489,44.7082,111.93,111.85,13.4126]
[1644475508788,44.7082,111.93,111.86,0.024]
[1644475508988,13.413,111.9,111.86,0.024]
[1644475509191,27.81065089,111.88,111.84,39.94151802]
[1644475509390,27.81065089,111.88,111.84,39.91751802]
[1644475510191,41.22675089,111.88,111.84,39.91751802]
[1644475512694,27.81065089,111.88,111.84,39.91751802]
[1644475513095,27.81065089,111.88,111.84,41.68356627]
[1644475513295,20.38185089,111.88,111.84,54.39356627]
[1644475513695,20.38185089,111.88,111.84,52.62751802]
[1644475513896,20.38185089,111.88,111.84,52.37751802]
[1644475514097,20.38185089,111.88,111.84,65.79031802]
[1644475514298,27.81065089,111.9,111.84,65.79031802]
[1644475514496,20.38185089,111.86,111.84,65.81431802]
[1644475514698,20.38185089,111.86,111.85,3.00397441]
[1644475515497,20.38185089,111.86,111.85,16.41477441]
[1644475519809,23.41405086,111.86,111.85,13.4108]
[1644475520113,51.22470175,111.86,111.85,13.4108]
[1644475520613,48.19250178,111.86,111.85,13.4108]
[1644475521011,48.19250178,111.86,111.85,16.41477441]
[1644475526918,27.81065089,111.86,111.85,16.41477441]
[1644475527117,13.4084,111.94,111.86,41.2199]
[1644475527321,0.024,111.96,111.87,12.46]
[1644475527520,2.57076299,111.99,111.88,24.7034]
[1644475527718,0.024,111.95,111.89,12.46]
[1644475527919,2.54676299,111.99,111.89,12.46]
[1644475527920,0.024,111.98,111.89,12.46]
[1644475528120,39.16350434,111.98,111.91,13.4049]
[1644475528320,0.024,111.97,111.91,13.4049]
[1644475528822,0.024,111.97,111.92,35.43097398]
[1644475529020,39.16350434,111.98,111.92,35.43097398]
[1644475529220,0.024,111.97,111.92,35.43097398]
[1644475529420,39.16350434,111.98,111.92,35.43097398]
[1644475529826,13.4051,111.97,111.91,13.4049]
[1644475530026,13.4291,111.97,111.91,13.4049]
[1644475530225,2.54676299,111.99,111.91,13.6549]
[1644475530226,0.024,111.98,111.91,13.6549]
[1644475530423,0.024,111.98,111.91,13.4049]
[1644475530623,5.11130836,112.01,111.92,24.7248]
[1644475530826,5.11130836,112.01,111.93,13.402]
[1644475530827,0.024,111.97,111.93,13.402]
[1644475531050,35.59509795,111.99,111.93,61.08913404]
[1644475532844,48.99769795,111.99,111.93,61.08913404]
[1644475533645,48.99769795,111.99,111.93,13.402]
[1644475535048,48.99769795,111.99,111.94,34.71963304]
[1644475535849,48.99769795,111.99,111.93,13.402]
[1644475536249,49.02169795,111.99,111.93,13.402]
[1644475536452,48.99769795,111.99,111.93,13.402]
[1644475536849,48.99769795,111.99,111.93,60.61102316]
[1644475537752,13.4026,111.99,111.93,60.61102316]
[1644475537952,13.4016,112.0,111.93,60.61102316]
[1644475541158,37.89406313,112.0,111.93,60.61102316]
[1644475543862,13.4016,112.0,111.93,60.61102316]
[1644475545160,13.4256,112.0,111.93,60.61102316]
[1644475545458,0.024,112.0,111.93,60.61102316]
[1644475545659,13.4242,112.01,111.96,13.3996]
[1644475545861,13.4002,112.01,111.96,13.3996]
[1644475546459,48.58020143,112.01,111.95,47.02911365]
[1644475547262,13.4002,112.01,111.95,47.02911365]
[1644475547863,13.4002,112.01,111.95,60.42991365]
[1644475549665,35.35603245,112.01,111.95,60.42991365]
[1644475552167,13.4002,112.01,111.95,60.42991365]
[1644475554567,2.78789299,112.02,111.95,60.42991365]
[1644475554765,2.78789299,112.02,111.95,73.13991365]
[1644475554766,0.21713,112.02,111.95,73.13991365]
[1644475555166,0.24113,112.02,111.95,73.13991365]
[1644475555368,0.21713,112.02,111.95,83.15691365]
[1644475555770,0.24113,112.02,111.97,47.92113203]
[1644475555970,0.21713,112.02,111.97,73.77603203]
[1644475557670,0.21713,112.02,111.97,61.31603203]
[1644475558771,13.61583,112.02,111.97,61.31603203]
[1644475561277,44.71542311,112.02,111.97,61.31603203]
[1644475562176,13.61583,112.02,111.97,61.31603203]
[1644475565281,13.61583,112.02,111.97,13.3949]
[1644475565482,13.61583,112.02,111.96,36.2752]
[1644475565783,13.63983,112.02,111.96,36.2752]
[1644475565982,11.883752,112.01,111.93,44.6651]
[1644475566183,35.14159426,112.0,111.93,41.79460818]
[1644475566384,35.11759426,112.0,111.93,41.79460818]
[1644475566683,13.4255,112.0,111.93,41.79460818]
[1644475566883,0.024,112.01,111.94,13.402]
[1644475567083,0.024,112.01,111.94,38.1219]
[1644475567483,39.32255182,112.01,111.94,38.1219]
[1644475567685,52.72225182,112.01,111.94,38.1219]
[1644475567883,52.72225182,112.01,111.95,39.9151448]
[1644475568083,13.4237,112.01,111.95,53.3160448]
[1644475568488,13.4237,112.01,111.94,24.7199]
[1644475569586,59.47075348,112.01,111.95,45.66105332]
[1644475571590,62.01751647,112.01,111.95,45.66105332]
[1644475575418,62.01751647,112.01,111.94,13.4016]
[1644475575818,62.01751647,112.01,111.92,35.0283]
[1644475576021,5.1170434,112.0,111.91,37.3961]
[1644475576218,13.4051,111.98,111.91,37.3961]
[1644475576417,35.3500982,111.98,111.92,38.78738191]
[1644475577819,13.4051,111.98,111.92,38.78738191]
[1644475578622,13.4051,111.98,111.92,52.19138191]
[1644475580426,13.4021,111.99,111.92,52.19138191]
[1644475580624,59.47256043,112.0,111.94,42.79743357]
[1644475580827,59.44856043,112.0,111.94,42.79743357]
[1644475581024,59.47256043,112.0,111.94,42.79743357]
[1644475581724,13.403,111.98,111.94,42.79743357]
[1644475582125,13.403,111.98,111.93,24.4611]
[1644475583226,13.403,111.98,111.94,39.87482543]
[1644475583830,13.403,111.98,111.93,24.4611]
[1644475584931,46.71409125,111.98,111.93,24.4611]
[1644475585330,13.403,111.98,111.93,24.4611]
[1644475585530,1.27151479,111.97,111.93,24.4611]
[1644475585731,14.67561479,111.97,111.93,24.4611]
[1644475586336,14.67561479,111.97,111.94,41.23572769]
[1644475586532,3.06042552,111.96,111.93,24.4611]
[1644475587033,3.06042552,111.96,111.94,3.00397441]
[1644475587632,1.27151479,111.98,111.94,3.00397441]
[1644475587830,1.27151479,111.97,111.93,24.4611]
[1644475588034,1.27151479,111.97,111.9,12.46]
[1644475588331,1.27151479,111.96,111.89,23.4258]
[1644475588531,1.27151479,111.95,111.89,23.4258]
[1644475589034,1.27151479,111.95,111.9,39.83849983]
[1644475589233,1.27151479,111.95,111.9,39.86249983]
[1644475589431,1.27151479,111.94,111.9,0.024]
[1644475589632,14.67961479,111.94,111.89,36.8094]
[1644475590131,14.67961479,111.94,111.89,23.4018]
[1644475590532,1.27151479,111.93,111.89,23.4018]
[1644475590733,13.4099,111.92,111.89,23.4018]
[1644475590931,3.06042552,111.91,111.89,23.4018]
[1644475591535,3.06042552,111.91,111.88,57.6866689]
[1644475591735,16.47202552,111.91,111.86,0.024]
[1644475592135,17.74354031,111.91,111.86,0.024]
[1644475592334,17.74354031,111.91,111.83,0.024]
[1644475592735,13.4169,111.88,111.83,34.95105731]
[1644475592938,13.4169,111.88,111.84,0.024]
[1644475593136,13.4169,111.88,111.83,34.92705731]
[1644475593335,42.278274,111.88,111.83,34.92705731]
[1644475594338,42.278274,111.88,111.82,46.6481]
[1644475595338,42.278274,111.88,111.82,0.024]
[1644475605144,20.36579,111.87,111.82,0.024]
[1644475605344,24.545066,111.87,111.79,0.024]
[1644475605544,13.4206,111.85,111.79,0.024]
[1644475605746,39.13067768,111.84,111.79,0.024]
[1644475605972,39.13067768,111.84,111.78,49.4184]
[1644475610553,0.30107684,111.97,111.8,70.0]
[1644475610754,0.024,112.0,111.86,155.81]
[1644475610954,1.26348709,111.96,111.87,168.27]
[1644475611153,1.26348709,111.99,111.88,12.46]
[1644475611353,1.28748709,112.0,111.88,18.46]
[1644475611555,37.68678729,111.99,111.89,69.2842201]
[1644475611754,37.68678729,111.99,111.89,101.54971959]
[1644475611953,37.68678729,111.99,111.9,12.46]
[1644475612156,36.4473002,111.99,111.91,42.82480459]
[1644475612354,36.4233002,111.99,111.92,12.46]
[1644475612754,36.4473002,111.99,111.92,12.46]
[1644475613055,37.71078729,111.99,111.92,12.46]
[1644475613253,37.68678729,111.99,111.92,12.46]
[1644475613478,36.4233002,111.99,111.92,12.46]
[1644475613679,37.71078729,111.99,111.92,12.46]
[1644475613880,37.68678729,111.99,111.92,12.46]
[1644475614078,16.829881,111.98,111.92,12.46]
[1644475614480,18.09336809,111.98,111.92,12.46]
[1644475614783,28.785503,111.97,111.87,24.9339]
[1644475614981,42.69912753,111.97,111.88,56.19732591]
[1644475615382,43.96261462,111.97,111.88,56.19732591]
[1644475615781,42.69912753,111.97,111.88,56.19732591]
[1644475616184,43.96261462,111.97,111.88,56.19732591]
[1644475617785,43.96261462,111.97,111.88,69.60512591]
[1644475617983,42.69912753,111.97,111.88,69.60512591]
[1644475619486,43.96261462,111.97,111.88,69.60512591]
[1644475620086,42.69912753,111.97,111.88,69.60512591]
[1644475620285,43.96261462,111.97,111.88,69.60512591]
[1644475620486,42.69912753,111.97,111.88,92.47972591]
[1644475620686,43.96261462,111.97,111.88,92.47972591]
[1644475621587,43.96261462,111.97,111.88,48.7424]
[1644475621788,57.37181462,111.97,111.88,35.3346]
[1644475621986,1.26348709,111.96,111.88,35.3346]
[1644475622186,0.76348709,111.96,111.88,35.3346]
[1644475622388,42.69912753,111.97,111.88,35.3346]
[1644475622990,42.69912753,111.97,111.88,22.8746]
[1644475623688,13.4103,111.96,111.87,73.41627539]
[1644475623889,47.24475436,111.95,111.87,73.41627539]
[1644475625992,47.24475436,111.95,111.87,85.87627539]
[1644475628491,47.24475436,111.95,111.87,37.4179]
[1644475628693,60.65595436,111.95,111.87,37.4179]
[1644475628893,58.442816,111.94,111.87,12.46]
[1644475629191,58.442816,111.94,111.84,12.484]
[1644475629393,47.24475436,111.95,111.87,0.024]
[1644475629591,44.16726054,111.93,111.85,0.024]
[1644475630392,57.58176054,111.93,111.85,0.024]
[1644475630592,44.16726054,111.93,111.87,42.78593551]
[1644475630795,44.16726054,111.93,111.87,0.024]
[1644475636400,19.082803,111.92,111.87,0.024]
[1644475636600,19.082803,111.92,111.86,0.024]
[1644475636799,24.010131,111.92,111.85,24.797]
[1644475636999,44.16726054,111.93,111.85,24.821]
[1644475637201,44.16726054,111.93,111.86,0.024]
[1644475637402,24.010131,111.92,111.86,0.024]
[1644475637600,41.2131114,111.91,111.86,0.024]
[1644475637801,4.925637,111.9,111.86,0.024]
[1644475638101,48.39397627,111.89,111.86,0.024]
[1644475638401,0.02822555,111.88,111.84,44.6294376]
[1644475638602,0.02822555,111.88,111.84,44.6054376]
[1644475638801,0.02822555,111.88,111.83,48.6135]
[1644475639004,0.02822555,111.88,111.83,48.5895]
[1644475639809,0.02822555,111.88,111.83,86.28965232]
[1644475641907,24.7495,111.94,111.84,22.7766]
[1644475642108,24.7495,111.94,111.85,13.4113]
[1644475642309,24.7495,111.94,111.86,22.7766]
[1644475642510,24.7495,111.94,111.86,22.8006]
[1644475642708,39.9698851,111.93,111.86,22.8006]
[1644475644612,39.9698851,111.93,111.87,42.34086643]
[1644475645310,39.9698851,111.93,111.86,22.8006]
[1644475645711,39.9698851,111.93,111.86,36.212]
[1644475646413,39.9698851,111.93,111.86,71.49085668]
[1644475647242,39.9698851,111.93,111.86,36.212]
[1644475647641,16.622964,111.92,111.86,22.8006]
[1644475648040,11.875365,111.92,111.86,22.8006]
[1644475648240,50.71868604,111.91,111.86,22.8006]
[1644475648441,38.84332104,111.91,111.86,22.8006]
[1644475648642,13.4137,111.92,111.86,22.8006]
[1644475648843,27.27647419,111.94,111.86,22.8006]
[1644475649046,24.7495,111.94,111.86,35.2606]
[1644475649445,27.27647419,111.94,111.86,35.2606]
[1644475649747,47.97772673,111.93,111.87,46.6191733]
[1644475650246,47.97772673,111.93,111.86,35.2606]
[1644475650744,47.97772673,111.93,111.86,48.6721]
[1644475654351,2.52697419,111.94,111.87,36.07870169]
[1644475654552,2.52697419,111.96,111.88,25.8692]
[1644475654754,2.52697419,111.97,111.88,55.4088]
[1644475654954,2.52697419,111.97,111.88,57.17716854]
[1644475655353,2.52697419,111.97,111.89,36.63189187]
[1644475655354,38.73074566,111.97,111.89,36.63189187]
[1644475655552,38.73074566,111.97,111.91,13.4049]
[1644475655754,2.52697419,111.97,111.91,61.74514727]
[1644475655954,2.52697419,111.97,111.91,61.99514727]
[1644475656156,0.024,111.99,111.92,7.76836854]
[1644475656356,0.024,111.99,111.93,12.46]
[1644475656555,0.024,112.01,111.93,12.46]
[1644475656755,0.024,111.99,111.94,70.62661278]
[1644475656956,0.024,112.0,111.95,12.46]
[1644475657156,0.024,112.01,111.95,12.46]
[1644475657357,0.21713,112.02,111.95,12.46]
[1644475657558,0.024,112.01,111.95,12.46]
[1644475657756,0.024,112.01,111.96,36.12132967]
[1644475658057,0.024,112.01,111.96,49.52022967]
[1644475659258,42.975099,112.02,111.96,49.52022967]
[1644475659859,0.21713,112.02,111.96,49.52022967]
[1644475660057,0.21713,112.02,111.96,73.34592967]
[1644475661062,0.24113,112.02,111.96,73.34592967]
[1644475661562,0.21713,112.02,111.97,12.46]
[1644475661763,0.21713,112.02,111.98,13.3965]
[1644475662163,0.21713,112.02,111.98,38.2719]
[1644475662365,0.21713,112.02,111.99,47.73243341]
[1644475662565,3.06042552,112.01,111.98,38.2719]
[1644475662763,3.06042552,112.01,111.97,12.46]
[1644475663565,3.06042552,112.01,111.98,47.33972235]
[1644475664665,3.06042552,112.01,111.99,3.00397441]
[1644475664866,0.21713,112.02,111.99,3.00397441]
[1644475664867,0.21713,112.02,111.99,16.39997441]
[1644475665067,0.21713,112.02,111.99,39.49667441]
[1644475665465,0.21713,112.02,112.0,39.84025836]
[1644475665866,0.21713,112.02,111.99,23.0967]
[1644475666076,0.21713,112.02,112.0,3.00397441]
[1644475666467,0.02822555,112.01,112.0,3.00397441]
[1644475666667,3.06042552,112.01,112.0,3.00397441]
[1644475666871,3.06042552,112.01,111.97,51.78390194]
[1644475669374,3.06042552,112.01,111.97,39.32390194]
[1644475669672,3.06042552,112.01,111.96,13.3993]
[1644475669873,3.08442552,112.01,111.96,13.3993]
[1644475670076,3.06042552,112.01,111.96,13.3993]
[1644475670676,3.06042552,112.01,111.96,48.86538765]
[1644475671476,0.21713,112.02,111.96,48.86538765]
[1644475671676,0.21713,112.02,111.97,35.2323]
[1644475671876,0.24113,112.02,111.98,13.3956]
[1644475672077,0.21713,112.02,111.98,13.3956]
[1644475672478,0.21713,112.02,111.99,46.23853013]
[1644475672679,0.21713,112.02,112.0,3.00397441]
[1644475675097,0.21713,112.02,112.01,47.02521646]
[1644475677000,0.21713,112.02,112.0,16.39847441]
[1644475678002,0.21713,112.02,112.01,46.69589925]
[1644475679704,0.21713,112.02,112.01,60.08949925]
[1644475682207,0.21713,112.02,112.01,13.3936]
[1644475682412,3.27755552,112.02,112.01,13.3936]
[1644475682809,0.21713,112.02,112.01,13.3936]
[1644475683810,0.24535555,112.02,112.01,13.3936]
[1644475684011,0.21713,112.02,112.01,13.3936]
[1644475684212,0.21713,112.02,112.01,41.46107508]
[1644475685713,0.21713,112.02,112.01,54.85477508]
[1644475685912,0.21713,112.02,112.01,41.46107508]
[1644475686314,0.21713,112.02,112.01,41.71107508]
[1644475686513,0.21713,112.02,112.01,65.31967508]
[1644475687012,0.21713,112.02,112.01,65.06967508]
[1644475687213,0.21713,112.02,112.01,78.46347508]
[1644475690823,0.21713,112.02,112.01,90.92347508]
[1644475693622,0.21713,112.02,112.01,91.17347508]
[1644475694224,0.00713,112.02,112.01,92.94184362]
[1644475694423,0.024,112.09,112.01,110.20656301]
[1644475694624,5.08876661,112.11,112.01,110.20656301]
[1644475694825,0.024,112.08,112.01,208.02156301]
[1644475695025,0.024,112.1,112.05,13.385]
[1644475695225,0.024,112.11,112.06,56.79092104]
[1644475695427,34.97253191,112.12,112.06,12.46]
[1644475695725,37.5235061,112.12,112.05,23.2727]